bitfinex-derivatives/quotes_ETHF0:USTF0_20210110
["timestamp","ask_amount","ask_price","bid_price","bid_amount"]
[1610317697743,10.5144231,1284.1,1284.0,4.00959]
[1610317698244,30.0,1284.2,1284.0,4.00959]
[1610317698444,30.0,1284.1,1284.0,4.00959]
[1610317699244,40.51405238,1284.1,1284.0,4.00959]
[1610317699444,10.51405238,1284.1,1284.0,4.00959]
[1610317701145,10.51348942,1284.2,1284.0,4.00959]
[1610317701345,40.51348942,1284.2,1284.0,4.00959]
[1610317702748,10.51338938,1284.1,1284.0,4.00959]
[1610317703145,40.51332183,1284.2,1284.0,4.00959]
[1610317704750,8.60283697,1284.1,1284.0,4.00959]
[1610317705849,8.60283697,1284.1,1284.0,5.20288694]
[1610317706850,38.60283697,1284.1,1284.0,5.20288694]
[1610317707652,8.60283697,1284.1,1284.0,5.20288694]
[1610317708052,8.60283697,1284.1,1284.0,4.00959]
[1610317708453,8.60283697,1284.1,1284.0,5.20279505]
[1610317708652,8.60189155,1284.2,1284.0,5.20279505]
[1610317710256,8.60189155,1284.2,1284.1,1.19320313]
[1610317716766,8.6011838,1284.3,1284.1,1.19320313]
[1610317717669,8.6006907,1284.4,1284.2,4.00959]
[1610317717867,8.6006907,1284.4,1284.2,5.90789]
[1610317718466,8.60152749,1284.3,1284.2,5.90789]
[1610317719767,8.60159129,1284.4,1284.2,5.90789]
[1610317720366,8.60159129,1284.4,1284.2,7.10093654]
[1610317721768,8.60159129,1284.4,1284.3,1.19298661]
[1610317722369,10.51184465,1284.5,1284.3,1.19298661]
[1610317723371,8.60120383,1284.4,1284.3,1.19298661]
[1610317723970,8.60120383,1284.4,1284.2,5.90789]
[1610317724569,8.60120383,1284.4,1284.3,1.19288554]
[1610317732076,8.60047685,1284.5,1284.3,1.19288554]
[1610317733680,8.60047685,1284.5,1284.4,4.00959]
[1610317734380,8.60007546,1284.6,1284.4,4.00959]
[1610317735583,8.60007546,1284.6,1284.5,1.19285697]
[1610317735781,8.60007546,1284.6,1284.5,3.57535697]
[1610317738086,8.60012249,1284.7,1284.5,3.57535697]
[1610317739692,8.60012249,1284.7,1284.6,1.19276014]
[1610317739892,8.60012249,1284.7,1284.6,5.20235014]
[1610317743396,8.5991596,1284.8,1284.6,5.20235014]
[1610317744196,8.59932183,1284.7,1284.6,5.20235014]
[1610317744396,8.59932183,1284.7,1284.6,4.00959]
[1610317745198,38.59932183,1284.7,1284.6,4.00959]
[1610317745799,38.59932183,1284.7,1284.6,5.20237919]
[1610317746597,30.0,1284.7,1284.6,5.20237919]
[1610317746997,38.59963492,1284.7,1284.6,5.20237919]
[1610317747999,30.0,1284.7,1284.6,5.20237919]
[1610317748401,38.59921226,1284.7,1284.6,5.20237919]
[1610317748799,30.0,1284.7,1284.6,5.20237919]
[1610317748999,38.59896618,1284.7,1284.6,5.20237919]
[1610317749399,38.59896618,1284.7,1284.6,4.00959]
[1610317749600,30.0,1284.7,1284.6,4.00959]
[1610317749999,30.0,1284.7,1284.6,5.20231847]
[1610317756704,30.0,1284.8,1284.6,5.20231847]
[1610317758605,30.0,1284.8,1284.7,1.19265703]
[1610317771726,38.59656511,1284.8,1284.7,1.19265703]
[1610317772126,30.0,1284.8,1284.7,1.19265703]
[1610317772327,38.59671265,1284.8,1284.7,1.19265703]
[1610317773329,30.0,1284.8,1284.7,1.19265703]
[1610317773528,38.59663711,1284.8,1284.7,1.19265703]
[1610317790059,40.50484268,1284.8,1284.7,1.19265703]
[1610317793062,30.0,1284.8,1284.7,1.19265703]
[1610317794065,34.00959,1284.8,1284.7,1.19265703]
[1610317798369,30.0,1284.8,1284.7,1.19265703]
[1610317811189,30.0,1284.9,1284.7,1.19265703]
[1610317816095,30.0,1284.9,1284.8,4.00959]
[1610317816997,30.0,1284.9,1284.8,5.20229887]
[1610317819901,30.0,1284.9,1284.8,1.19270887]
[1610317822000,42.41576624,1284.9,1284.8,1.19270887]
[1610317822399,30.0,1284.9,1284.8,1.19270887]
[1610317822699,42.41578518,1284.9,1284.8,1.19270887]
[1610317823000,30.0,1284.9,1284.8,1.19270887]
[1610317824199,34.00959,1284.9,1284.8,1.19270887]
[1610317825300,46.4257213,1284.9,1284.8,1.19270887]
[1610317827505,46.4257213,1284.9,1284.6,1.19285287]
[1610317827905,10.50683572,1284.7,1284.6,1.19285287]
[1610317828205,40.50683572,1284.7,1284.6,1.19285287]
[1610317834915,30.0,1284.7,1284.6,1.19285287]
[1610317836017,40.50652395,1284.7,1284.6,1.19285287]
[1610317840625,30.0,1284.7,1284.6,1.19285287]
[1610317840924,40.50648909,1284.7,1284.6,1.19285287]
[1610317848432,30.0,1284.7,1284.6,1.19285287]
[1610317850638,29.0,1284.7,1284.6,1.18337533]
[1610317857351,41.4177602,1284.7,1284.6,1.18337533]
[1610317858053,41.4177602,1284.7,1284.4,1.1929725]
[1610317858252,4.00959,1284.5,1284.4,1.1929725]
[1610317858451,14.51748386,1284.5,1284.4,1.1929725]
[1610317858653,43.51748386,1284.5,1284.4,1.1929725]
[1610317859053,33.00959,1284.5,1284.4,1.1929725]
[1610317862758,45.42946039,1284.5,1284.4,1.1929725]
[1610317863761,33.00959,1284.5,1284.4,1.1929725]
[1610317866360,33.00959,1284.5,1284.2,1.19336713]
[1610317866861,12.42161806,1284.3,1284.2,1.19336713]
[1610317867060,41.42161806,1284.3,1284.2,1.19336713]
[1610317867461,29.0,1284.3,1284.2,1.19336713]
[1610317868462,33.00959,1284.3,1284.2,1.19336713]
[1610317868661,45.43075569,1284.3,1284.2,1.19336713]
[1610317869061,33.00959,1284.3,1284.2,1.19336713]
[1610317870864,45.43118568,1284.3,1284.2,1.19336713]
[1610317872764,33.00959,1284.3,1284.2,1.19336713]
[1610317873565,33.00959,1284.3,1284.1,1.19384298]
[1610317873765,35.38169,1284.3,1284.1,1.19384298]
[1610317873968,12.42630623,1284.2,1284.1,1.19384298]
[1610317874166,29.0,1284.2,1284.1,1.19384298]
[1610317875166,41.42618547,1284.2,1284.1,1.19384298]
[1610317875471,29.0,1284.2,1284.1,1.19384298]
[1610317883882,74.4199,1284.2,1284.1,1.19384298]
[1610317884080,88.75855273,1284.2,1284.1,1.19384298]
[1610317884280,74.4199,1284.2,1284.1,1.19384298]
[1610317884681,45.25299049,1284.2,1284.1,1.19384298]
[1610317885081,45.25299049,1284.2,1283.0,60.783]
[1610317885082,29.0,1284.2,1283.0,60.783]
[1610317885282,47.16819469,1284.2,1283.0,60.783]
[1610317885682,8.60895435,1283.1,1283.0,60.783]
[1610317885882,39.5210597,1283.1,1283.0,60.783]
[1610317886484,43.5306497,1283.1,1283.0,60.783]
[1610317886684,33.00959,1283.1,1283.0,61.97783223]
[1610317887685,45.44497723,1283.1,1283.0,61.97783223]
[1610317888988,33.00959,1283.1,1283.0,61.97783223]
[1610317889287,47.36067946,1283.1,1283.0,61.97783223]
[1610317890189,49.19917946,1283.1,1283.0,61.97783223]
[1610317890787,34.84809,1283.1,1283.0,61.97783223]
[1610317892295,51.11634096,1283.1,1283.0,61.97783223]
[1610317893294,34.84809,1283.1,1283.0,1.19483223]
[1610317893494,34.84809,1283.1,1282.2,55.1719]
[1610317893694,29.0,1282.4,1282.2,55.1719]
[1610317894094,41.44433646,1282.4,1282.2,55.1719]
[1610317894294,12.44433646,1282.4,1282.2,55.1719]
[1610317894496,4.00959,1282.3,1282.2,55.1719]
[1610317894695,34.00959,1282.3,1282.2,55.1719]
[1610317895297,46.45449119,1282.3,1282.2,55.1719]
[1610317895898,46.45449119,1282.3,1281.5,94.0463]
[1610317896101,34.00959,1282.3,1279.8,0.22543953]
[1610317896302,48.37076287,1282.3,1282.2,1.19582743]
[1610317896703,34.00959,1282.3,1282.2,1.19582743]
[1610317897608,50.28744673,1282.3,1281.0,1.1960771]
[1610317898106,8.62041898,1281.3,1281.0,1.1960771]
[1610317898307,8.62154576,1281.2,1281.0,1.1960771]
[1610317898506,4.00959,1281.1,1281.0,1.1960771]
[1610317898706,12.63119087,1281.1,1281.0,1.1960771]
[1610317899108,12.63119087,1281.1,1280.4,1.19641504]
[1610317899707,12.63119087,1281.1,1280.3,1.8675]
[1610317900309,8.62312327,1281.0,1280.3,1.8675]
[1610317900510,4.00959,1280.8,1280.5,4.00959]
[1610317901913,8.62355195,1280.9,1280.6,1.19659292]
[1610317902615,8.131,1280.8,1280.6,1.19659292]
[1610317904515,8.131,1280.8,1280.7,4.00959]
[1610317904915,8.131,1280.8,1280.7,6.23119]
[1610317906017,8.131,1280.8,1280.7,7.4275791]
[1610317909322,8.131,1280.8,1280.7,3.4179891]
[1610317910124,8.131,1280.8,1280.7,1.1963891]
[1610317911923,8.62320286,1280.8,1280.7,1.1963891]
[1610317912526,12.63279286,1280.8,1280.7,1.1963891]
[1610317912926,8.62320286,1280.8,1280.7,1.1963891]
[1610317914526,12.63279286,1280.8,1280.7,1.1963891]
[1610317914728,4.00959,1280.8,1280.7,1.1963891]
[1610317915028,12.63351682,1280.8,1280.7,1.1963891]
[1610317915329,4.00959,1280.8,1280.7,1.1963891]
[1610317915628,12.63368461,1280.8,1280.7,1.1963891]
[1610317916933,8.62409461,1280.8,1280.7,1.1963891]
[1610317919236,12.63428329,1280.9,1280.7,1.1963891]
[1610317919535,8.62510574,1280.8,1280.7,1.1963891]
[1610317920137,12.63462651,1280.9,1280.7,1.1963891]
[1610317921940,8.62538704,1280.8,1280.7,1.1963891]
[1610317923144,4.00959,1280.9,1280.7,1.1963891]
[1610317923944,10.54234177,1280.8,1280.7,1.1963891]
[1610317924643,10.54234177,1280.8,1280.7,5.2059791]
[1610317925044,10.54234177,1280.8,1280.7,4.00959]
[1610317926444,10.54234177,1280.8,1280.7,5.20657818]
[1610317926944,10.54234177,1280.8,1280.7,1.19698818]
[1610317927845,10.54234177,1280.8,1280.4,1.19695551]
[1610317928249,8.62647165,1280.6,1280.4,1.19695551]
[1610317928648,8.62647165,1280.6,1280.4,5.20654551]
[1610317929246,12.63611263,1280.7,1280.4,5.20654551]
[1610317929446,8.62624334,1280.6,1280.4,1.19695551]
[1610317930247,8.62696855,1280.5,1280.4,1.19695551]
[1610317931949,8.62686285,1280.6,1280.4,1.19695551]
[1610317932349,8.62644201,1280.7,1280.4,1.19695551]
[1610317932548,8.62644201,1280.7,1280.6,4.00959]
[1610317932750,8.62611948,1280.8,1280.6,4.00959]
[1610317933050,8.62596698,1280.9,1280.6,4.00959]
[1610317933650,8.62596698,1280.9,1280.7,1.19673109]
[1610317934251,8.62458169,1281.0,1280.7,3.68703109]
[1610317934450,8.6241355,1281.1,1280.7,3.68703109]
[1610317934650,8.6241355,1281.1,1281.0,4.00959]
[1610317935250,8.62317318,1281.2,1281.0,4.00959]
[1610317936151,8.62286182,1281.3,1281.0,4.00959]
[1610317936551,8.62286182,1281.3,1281.2,4.00959]
[1610317937151,8.62100406,1281.4,1281.2,4.00959]
[1610317937651,8.62016812,1281.5,1281.2,4.00959]
[1610317938052,12.02428894,1281.7,1281.3,1.19597955]
[1610317938252,3.405,1281.7,1281.3,1.19597955]
[1610317938452,3.405,1281.7,1281.3,2.90497955]
[1610317938653,3.405,1281.7,1281.6,4.00959]
[1610317938852,8.61940798,1281.8,1281.6,5.99669]
[1610317939053,8.61797592,1282.0,1281.6,5.99669]
[1610317939453,10.53201832,1282.1,1281.6,5.99669]
[1610317939454,8.61741805,1282.1,1281.6,5.99669]
[1610317939653,8.61564521,1282.3,1281.6,5.99669]
[1610317940054,8.61464373,1282.4,1281.6,5.99669]
[1610317940454,12.01899257,1282.5,1281.6,5.99669]
[1610317940653,12.01899257,1282.5,1282.4,4.00959]
[1610317940854,12.01899257,1282.5,1282.4,6.19769]
[1610317940855,3.405,1282.5,1282.4,6.19769]
[1610317941254,8.6138115,1282.6,1282.4,6.19769]
[1610317941456,8.61254147,1282.7,1282.4,6.19769]
[1610317941856,8.61183098,1282.8,1282.4,6.19769]
[1610317942056,8.61183098,1282.8,1282.5,1.19490587]
[1610317942256,8.61173422,1282.9,1282.5,1.19490587]
[1610317942656,8.61173422,1282.9,1282.8,4.00959]
[1610317942856,8.61044066,1283.0,1282.8,5.95559]
[1610317943256,8.60979086,1283.1,1282.8,5.95559]
[1610317943456,3.405,1283.2,1282.8,7.15018546]
[1610317943857,8.60859808,1283.3,1282.8,7.15018546]
[1610317944057,8.60713786,1283.4,1282.8,7.15018546]
[1610317944457,8.60687683,1283.5,1282.8,7.15018546]
[1610317944657,8.60687683,1283.5,1283.4,4.00959]
[1610317944864,8.60637951,1283.6,1283.4,5.56709]
[1610317946359,8.60567817,1283.7,1283.4,5.56709]
[1610317946559,8.60563989,1283.8,1283.6,4.00959]
[1610317948258,8.60442694,1284.0,1283.6,4.00959]
[1610317948658,8.60442694,1284.0,1283.9,4.00959]
[1610317949060,8.60442694,1284.0,1283.9,6.32959]
[1610317949260,12.00899378,1284.1,1283.9,6.32959]
[1610317949461,12.00899378,1284.1,1284.0,8.0054]
[1610317949661,13.91946123,1284.1,1284.0,8.0054]
[1610317950062,12.00872305,1284.1,1284.0,8.0054]
[1610317950661,8.60238002,1284.3,1284.0,8.0054]
[1610317951061,8.60214313,1284.4,1284.0,8.0054]
[1610317951661,8.6017844,1284.5,1284.0,8.0054]
[1610317952061,8.60175691,1284.4,1284.1,1.19362628]
[1610317952567,8.6016756,1284.5,1284.1,1.19362628]
[1610317952770,8.6016756,1284.5,1284.3,4.00959]
[1610317952967,8.6016756,1284.5,1284.3,5.85499]
[1610317953368,8.60207431,1284.4,1284.3,5.85499]
[1610317954369,10.51258498,1284.5,1284.3,5.85499]
[1610317954872,10.51347356,1284.4,1284.3,5.85499]
[1610317955573,10.51353316,1284.5,1284.3,5.85499]
[1610317955774,8.60238267,1284.4,1284.3,5.85499]
[1610317957473,8.60238267,1284.4,1284.3,7.04852398]
[1610317958075,10.51331388,1284.4,1284.3,7.04852398]
[1610317959074,12.42448539,1284.6,1284.3,7.04852398]
[1610317959773,10.51356046,1284.4,1284.3,7.04852398]
[1610317959973,12.42448539,1284.6,1284.3,7.04852398]
[1610317960173,12.42448539,1284.6,1284.4,1.19371167]
[1610317960574,12.42375679,1284.7,1284.4,1.19371167]
[1610317960774,12.42375679,1284.7,1284.6,4.00959]
[1610317961376,14.33461102,1284.9,1284.6,4.00959]
[1610317961876,12.42391874,1284.7,1284.6,4.00959]
[1610317962076,12.42391874,1284.7,1284.6,5.2033017]
[1610317962276,14.33461102,1284.9,1284.6,5.2033017]
[1610317962477,14.33461102,1284.9,1284.6,1.1937117]
[1610317962676,18.34420102,1284.9,1284.6,1.1937117]
[1610317963076,14.3349449,1284.8,1284.6,1.1937117]
[1610317963477,14.3349449,1284.8,1284.5,1.19373294]
[1610317964578,14.33639689,1284.7,1284.5,1.19373294]
[1610317964779,4.00959,1284.6,1284.5,1.19373294]
[1610317965280,18.34618144,1284.6,1284.5,1.19373294]
[1610317966280,18.34618144,1284.6,1284.4,1.19378044]
[1610317967283,14.33779856,1284.5,1284.4,1.19378044]
[1610317967685,18.34751806,1284.6,1284.1,1.19380912]
[1610317968183,12.4275214,1284.2,1284.1,1.19380912]
[1610317968386,14.3409204,1284.3,1284.1,1.19380912]
[1610317968583,2.1025,1284.2,1284.1,1.19380912]
[1610317968783,20.45450199,1284.2,1284.1,1.19380912]
[1610317969083,6.11209,1284.2,1284.1,1.19380912]
[1610317969483,22.36985858,1284.2,1283.5,1.19438628]
[1610317969883,16.81811058,1283.8,1283.5,1.19438628]
[1610317970084,14.34817623,1283.6,1283.5,1.19438628]
[1610317970487,2.4709,1283.8,1283.5,1.19438628]
[1610317970488,18.73247148,1283.8,1283.5,1.19438628]
[1610317970683,16.26163855,1283.7,1283.5,1.19438628]
[1610317970883,4.00959,1283.6,1282.9,1.19461793]
[1610317971283,10.5244076,1283.0,1282.9,1.19461793]
[1610317972184,10.5244076,1283.0,1282.8,1.19466339]
[1610317972684,8.6120322,1282.9,1282.8,1.19466339]
[1610317973386,10.52500866,1283.0,1282.8,1.19466339]
[1610317973786,10.52595558,1282.9,1282.8,1.19466339]
[1610317975391,8.61282834,1282.9,1282.8,1.19466339]
[1610317977293,10.52572748,1283.0,1282.8,1.19466339]
[1610317977693,8.61253586,1282.9,1282.8,1.19466339]
[1610317977892,10.52572748,1283.0,1282.8,1.19466339]
[1610317978295,10.52578099,1282.9,1282.8,1.19466339]
[1610317978894,10.52557458,1283.0,1282.8,1.19466339]
[1610317979195,8.61257931,1282.9,1282.8,1.19466339]
[1610317980096,10.52557458,1283.0,1282.8,1.19466339]
[1610317980495,8.61246304,1282.9,1282.8,1.19466339]
[1610317981098,8.61216123,1283.0,1282.8,1.19466339]
[1610317981499,10.5249122,1283.1,1282.8,1.19466339]
[1610317981500,8.61070025,1283.1,1282.8,1.19466339]
[1610317981800,8.6103653,1283.3,1282.8,1.19466339]
[1610317982503,54.44360906,1283.4,1282.8,1.19466339]
[1610317982900,54.44360906,1283.4,1283.3,4.00959]
[1610317983101,8.60950906,1283.4,1283.3,5.55329]
[1610317983301,8.6091295,1283.5,1283.3,5.55329]
[1610317984003,8.6091295,1283.5,1283.3,6.74767852]
[1610317984601,8.60852052,1283.6,1283.3,6.74767852]
[1610317984904,10.52058103,1283.7,1283.5,4.00959]
[1610317985502,8.60823448,1283.6,1283.5,4.00959]
[1610317986303,8.60770158,1283.7,1283.5,4.00959]
[1610317986904,8.60770158,1283.7,1283.5,5.20374793]
[1610317987205,8.6067262,1283.8,1283.5,5.20374793]
[1610317988405,8.6067262,1283.8,1283.6,3.03398358]
[1610317989004,8.6067262,1283.8,1283.7,4.00959]
[1610317989305,8.60609835,1283.9,1283.7,4.00959]
[1610317989706,8.60579005,1284.0,1283.7,5.20361231]
[1610317989909,10.51712599,1284.1,1283.7,5.20361231]
[1610317990307,8.60469473,1284.1,1283.7,5.20361231]
[1610317990609,8.60341593,1284.3,1283.7,5.20361231]
[1610317991009,8.60341593,1284.3,1284.2,4.00959]
[1610317991210,8.6020732,1284.5,1284.2,6.18109]
[1610317991609,8.60167246,1284.6,1284.2,6.18109]
[1610317992410,8.60167246,1284.6,1284.3,1.19342323]
[1610317992811,8.60104255,1284.7,1284.3,1.19342323]
[1610317993009,8.60104255,1284.7,1284.6,6.16629]
[1610317993808,8.60104255,1284.7,1284.6,7.35964703]
[1610317995415,8.60039024,1284.8,1284.6,7.35964703]
[1610317997016,8.60039024,1284.8,1284.7,1.19329606]
[1610317998717,10.50958244,1285.0,1284.7,1.19329606]
[1610317998718,8.59970533,1284.9,1284.7,1.19329606]
[1610317999018,8.59970533,1284.9,1284.8,4.00959]
[1610317999919,8.59970533,1284.9,1284.8,5.20280965]
[1610318004829,10.50958244,1285.0,1284.8,5.20280965]
[1610318005028,8.59844523,1284.9,1284.8,5.20280965]
[1610318005431,8.59700585,1285.2,1284.8,5.20280965]
[1610318005829,8.59629741,1285.4,1284.9,43.6161]
[1610318006230,8.59629741,1285.4,1284.9,45.7459]
[1610318006431,8.59577909,1285.5,1284.9,45.7459]
[1610318006829,8.59577909,1285.5,1285.0,1.19252051]
[1610318007229,8.59577909,1285.5,1285.4,4.00959]
[1610318007428,14.32311662,1286.2,1285.4,4.00959]
[1610318007429,8.59505049,1285.6,1285.4,5.87699]
[1610318008236,12.41295187,1286.0,1285.5,1.19244057]
[1610318008432,12.41108186,1286.2,1285.5,1.19244057]
[1610318008632,4.00959,1286.8,1285.5,1.19244057]
[1610318008633,12.40988541,1286.3,1285.5,1.19244057]
[1610318009132,12.40988541,1286.3,1286.2,4.00959]
[1610318009332,12.40988541,1286.3,1286.2,5.74119]
[1610318011132,12.40988541,1286.3,1286.2,6.93338814]
[1610318011333,12.409182,1286.4,1286.2,6.93338814]
[1610318011833,12.40934561,1286.3,1286.2,6.93338814]
[1610318012434,12.40934561,1286.3,1286.2,5.74119]
[1610318012634,14.31843945,1286.5,1286.2,5.74119]
[1610318013037,14.31894302,1286.4,1286.2,5.74119]
[1610318013234,14.31894302,1286.4,1286.2,1.7316]
[1610318013535,14.32001964,1286.3,1286.2,1.7316]
[1610318013734,4.00959,1286.5,1286.2,1.7316]
[1610318013735,20.23872754,1286.5,1286.2,1.7316]
[1610318013937,20.23872754,1286.5,1285.9,2.3354]
[1610318014136,16.2311595,1286.4,1285.9,2.3354]
[1610318014337,14.32288106,1286.0,1285.9,2.3354]
[1610318014737,16.23321046,1286.2,1285.9,2.3354]
[1610318014938,16.23321046,1286.2,1285.4,1.8674]
[1610318015138,16.23363658,1286.1,1285.9,4.00959]
[1610318015543,2.1451,1286.1,1285.9,4.00959]
[1610318015740,2.1451,1286.1,1284.9,2.1298]
[1610318015945,20.2917657,1286.1,1284.9,2.1298]
[1610318016143,10.50822674,1285.0,1284.6,2.1567]
[1610318016543,10.50797272,1284.9,1283.0,5.7906]
[1610318016944,10.50797272,1284.9,1282.6,0.2176245]
[1610318017147,10.50797272,1284.9,1284.8,4.00959]
[1610318017344,12.41760113,1285.1,1284.8,4.00959]
[1610318017545,12.41790624,1285.0,1284.8,4.00959]
[1610318017943,12.41790624,1285.0,1284.8,5.20261123]
[1610318019345,12.41790624,1285.0,1284.9,1.1930825]
[1610318019749,14.32924649,1285.1,1284.9,1.1930825]
[1610318020548,14.3307201,1285.0,1284.9,1.1930825]
[1610318021646,14.3307201,1285.0,1284.8,4.00959]
[1610318022448,14.3307201,1285.0,1284.9,1.19346321]
[1610318022648,20.25480898,1285.2,1284.9,1.19346321]
[1610318022948,16.24606289,1285.1,1284.9,1.19346321]
[1610318023148,4.00959,1285.0,1284.9,1.19346321]
[1610318023750,4.00959,1285.0,1284.5,1.19359312]
[1610318024256,12.42472368,1284.6,1284.5,1.19359312]
[1610318024556,14.33548473,1284.8,1284.5,1.19359312]
[1610318025356,4.00959,1284.6,1284.4,1.19371717]
[1610318026059,12.42521391,1284.5,1284.4,1.19371717]
[1610318028961,12.42521391,1284.5,1283.8,30.60330717]
[1610318029162,12.42521391,1284.5,1284.3,4.00959]
[1610318030863,12.42588569,1284.4,1284.3,4.00959]
[1610318031062,12.42588569,1284.4,1284.0,2.111]
[1610318031264,4.00959,1284.3,1284.0,2.111]
[1610318031463,10.51598282,1284.1,1284.0,2.111]
[1610318031766,16.436701,1284.3,1284.0,2.111]
[1610318032465,12.42816385,1284.2,1284.1,1.19397106]
[1610318033065,18.35030334,1284.3,1284.1,1.19397106]
[1610318033666,14.34233605,1284.2,1284.1,1.19397106]
[1610318033867,14.34233605,1284.2,1284.0,1.19422516]
[1610318034266,14.34407489,1284.1,1284.0,1.19422516]
[1610318035168,4.00959,1284.1,1284.0,1.19422516]
[1610318035369,34.00959,1284.1,1284.0,1.19422516]
[1610318036169,50.26807501,1284.1,1284.0,1.19422516]
[1610318036374,34.00959,1284.1,1284.0,1.19422516]
[1610318036774,52.18544616,1284.1,1284.0,1.19422516]
[1610318037175,34.00959,1284.1,1283.3,1.19476654]
[1610318037876,14.35097127,1283.5,1283.3,1.19476654]
[1610318038075,44.35097127,1283.5,1283.3,1.19476654]
[1610318038277,44.35097199,1283.4,1283.3,1.19476654]
[1610318038677,14.35097199,1283.4,1283.3,1.19476654]
[1610318038878,31.6424,1283.5,1283.3,1.19476654]
[1610318039178,4.00959,1283.4,1283.3,1.19476654]
[1610318039480,34.00959,1283.4,1283.3,1.19476654]
[1610318039678,4.00959,1283.4,1283.3,1.19476654]
[1610318040979,34.00959,1283.4,1283.3,1.19476654]
[1610318041481,50.27553151,1283.4,1283.3,1.19476654]
[1610318043081,50.27553151,1283.4,1283.2,55.3773]
[1610318043382,50.27553151,1283.4,1282.6,4.00959]
[1610318043383,73.95531076,1283.3,1282.6,4.00959]
[1610318043583,103.95531076,1283.3,1282.6,4.00959]
[1610318043781,12.44108772,1282.8,1282.6,4.00959]
[1610318044383,12.44108772,1282.8,1282.7,1.19509218]
[1610318045383,16.45067772,1282.8,1282.7,1.19509218]
[1610318046184,4.00959,1282.8,1282.7,1.19509218]
[1610318046384,34.00959,1282.8,1282.7,1.19509218]
[1610318047185,34.00959,1282.8,1282.4,1.19539017]
[1610318047186,18.36619417,1282.8,1282.4,1.19539017]
[1610318047384,4.00959,1282.5,1282.4,1.19539017]
[1610318047685,16.45264283,1282.5,1282.4,1.19539017]
[1610318049589,4.00959,1282.5,1282.4,1.19539017]
[1610318049988,4.00959,1282.5,1282.3,1.19558762]
[1610318050390,18.36984377,1282.5,1282.3,1.19558762]
[1610318051489,14.36090198,1282.4,1282.3,1.19558762]
[1610318052690,14.36090198,1282.4,1282.2,63.5193]
[1610318052889,14.36090198,1282.4,1281.8,4.00959]
[1610318053291,14.54245512,1281.9,1281.8,4.00959]
[1610318054090,14.54245512,1281.9,1281.8,5.20535609]
[1610318054293,4.00959,1281.9,1281.8,5.20535609]
[1610318058293,12.44913139,1282.0,1281.8,5.20535609]
[1610318058495,12.44809721,1282.1,1281.8,5.20535609]
[1610318058697,8.61818292,1281.9,1281.8,5.20535609]
[1610318059096,8.61773602,1282.0,1281.8,5.20535609]
[1610318059296,8.61773602,1282.0,1281.8,6.81635609]
[1610318059697,8.61728626,1282.1,1281.8,6.81635609]
[1610318060098,8.61728626,1282.1,1281.9,1.19562256]
[1610318061399,8.61728626,1282.1,1282.0,4.00959]
[1610318061601,8.61728626,1282.1,1281.9,1.19562256]
[1610318061800,10.53126941,1282.1,1281.9,1.19562256]
[1610318062101,8.61741342,1282.0,1281.9,1.19562256]
[1610318063402,8.61741342,1282.0,1281.9,5.20521256]
[1610318063704,10.53126941,1282.1,1281.9,5.20521256]
[1610318064004,10.53186371,1282.0,1281.9,5.20521256]
[1610318065104,16.45592114,1282.2,1281.9,5.20521256]
[1610318065508,12.44765682,1282.1,1281.9,5.20521256]
[1610318066706,12.44765682,1282.1,1281.9,1.19562256]
[1610318066905,12.44765682,1282.1,1282.0,1.19593722]
[1610318067107,18.37363066,1282.2,1282.0,1.19593722]
[1610318067305,16.28270972,1282.1,1282.0,1.19593722]
[1610318067710,4.00959,1282.2,1282.0,1.19593722]
[1610318068205,22.20883469,1282.2,1282.0,1.19593722]
[1610318068405,22.20883469,1282.2,1281.5,1.19641417]
[1610318069007,14.36922771,1281.7,1281.5,1.19641417]
[1610318069407,4.00959,1281.6,1281.5,1.19641417]
[1610318070008,16.55522771,1281.7,1281.5,1.19641417]
[1610318070211,12.45206465,1281.6,1281.5,1.19641417]
[1610318070812,12.45055998,1281.7,1281.5,1.19641417]
[1610318071209,10.53493444,1281.6,1281.5,1.19641417]
[1610318071610,75.70123444,1281.6,1281.5,1.19641417]
[1610318071810,65.1663,1281.6,1281.5,1.19641417]
[1610318072009,75.70118887,1281.6,1281.5,1.19641417]
[1610318081118,10.53488887,1281.6,1281.5,1.19641417]
[1610318081618,14.54412967,1281.7,1281.5,1.19641417]
[1610318081918,10.53464387,1281.6,1281.5,1.19641417]
[1610318082920,14.54434149,1281.7,1281.5,1.19641417]
[1610318083322,10.53478419,1281.6,1281.5,1.19641417]
[1610318085121,4.00959,1281.7,1281.5,1.19641417]
[1610318085320,16.46012186,1281.7,1281.5,1.19641417]
[1610318088227,4.00959,1281.7,1281.5,1.19641417]
[1610318096839,5.58209,1281.7,1281.5,1.19641417]
[1610318097640,18.03343714,1281.7,1281.5,1.19641417]
[1610318097941,12.45234208,1281.6,1281.5,1.19641417]
[1610318098340,12.45234208,1281.6,1281.4,1.19625431]
[1610318098945,12.45281945,1281.5,1281.4,1.19625431]
[1610318099545,16.46240945,1281.5,1281.4,1.19625431]
[1610318099745,4.00959,1281.5,1281.0,1.19636776]
[1610318099945,4.00959,1281.5,1281.2,46.7108]
[1610318100245,10.53756046,1281.3,1281.2,46.7108]
[1610318101247,10.53756046,1281.3,1281.2,47.9071322]
[1610318101646,14.54715046,1281.3,1281.2,47.9071322]
[1610318102546,4.00959,1281.3,1281.2,47.9071322]
[1610318102846,14.54727056,1281.3,1281.2,47.9071322]
[1610318103550,12.63168499,1281.3,1281.2,47.9071322]
[1610318103851,4.00959,1281.3,1281.2,47.9071322]
[1610318104849,10.53705224,1281.4,1281.2,47.9071322]
[1610318105651,10.53641853,1281.5,1281.3,6.26669]
[1610318106052,10.53488605,1281.7,1281.3,6.26669]
[1610318106451,10.53339768,1281.9,1281.3,6.26669]
[1610318106852,10.53276992,1282.0,1281.4,1.19575046]
[1610318107053,3.405,1282.1,1281.4,1.19575046]
[1610318107553,3.405,1282.1,1282.0,4.00959]
[1610318107951,17.34170319,1282.3,1282.0,4.00959]
[1610318108151,6.811,1282.3,1282.0,4.00959]
[1610318109657,6.811,1282.3,1282.2,4.00959]
[1610318111061,6.811,1282.3,1282.2,5.2050609]
[1610318115062,6.811,1282.3,1282.2,1.1954709]
[1610318115662,6.811,1282.3,1282.2,5.2050609]
[1610318116063,6.811,1282.3,1282.2,1.1954709]
[1610318116265,19.25653172,1282.3,1282.2,1.1954709]
[1610318116463,12.44553172,1282.3,1282.2,1.1954709]
[1610318119473,4.00959,1282.4,1282.2,1.1954709]
[1610318119874,12.44691951,1282.3,1282.2,1.1954709]
[1610318120173,4.00959,1282.4,1282.2,1.1954709]
[1610318120876,18.37114387,1282.4,1282.2,1.1954709]
[1610318121475,14.3621085,1282.3,1282.2,1.1954709]